[Event "*** Titled Tuesday Blitz"]
[Site "Chess.com"]
[Date "2020.04.14"]
[Round "4"]
[White "zacachess"]
[Black "goofypenguin96"]
[Result "1-0"]
[WhiteElo "2286"]
[BlackElo "2112"]
[TimeControl "180+1"]
[EndTime "10:39:16 PDT"]
[Termination "zacachess won by checkmate"]

1. d4 {[%clk 0:02:58.4]} 1... d5 {[%clk 0:02:56.9]} 2. Bf4 {[%clk 0:02:58.5]}
2... e6 {[%clk 0:02:47.2]} 3. Nc3 {[%clk 0:02:57.3]} 3... a6 {[%clk 0:02:30.5]}
4. Nf3 {[%clk 0:02:49]} 4... f5 {[%clk 0:02:24.6]} 5. Ne5 {[%clk 0:02:41.9]}
5... Nf6 {[%clk 0:02:22.5]} 6. e3 {[%clk 0:02:39.5]} 6... Be7 {[%clk 0:02:15.3]}
7. Be2 {[%clk 0:02:34.4]} 7... O-O {[%clk 0:02:11]} 8. h3 {[%clk 0:02:18.1]}
8... Nbd7 {[%clk 0:02:02.8]} 9. g4 {[%clk 0:02:17.1]} 9... Ne4 {[%clk
0:01:56.6]} 10. gxf5 {[%clk 0:02:12.5]} 10... Rxf5 {[%clk 0:00:59.1]} 11. Nxe4
{[%clk 0:01:47.9]} 11... dxe4 {[%clk 0:00:57.4]} 12. Bg4 {[%clk 0:01:40.2]}
12... Nxe5 {[%clk 0:00:51]} 13. Bxe5 {[%clk 0:01:27.5]} 13... Rf8 {[%clk
0:00:35.8]} 14. c3 {[%clk 0:01:07.6]} 14... Bh4 {[%clk 0:00:23]} 15. Rh2 {[%clk
0:00:49.8]} 15... Bd7 {[%clk 0:00:20.7]} 16. Qc2 {[%clk 0:00:33.6]} 16... Qe7
{[%clk 0:00:16.3]} 17. O-O-O {[%clk 0:00:32.2]} 17... Bc6 {[%clk 0:00:15.9]} 18.
Rg1 {[%clk 0:00:31.9]} 18... a5 {[%clk 0:00:15.4]} 19. Bxe6+ {[%clk 0:00:20.1]}
19... Qxe6 {[%clk 0:00:13.4]} 20. Rxg7+ {[%clk 0:00:20.1]} 20... Kh8 {[%clk
0:00:12.8]} 21. Re7+ {[%clk 0:00:08.5]} 21... Kg8 {[%clk 0:00:13.7]} 22. Rxe6
{[%clk 0:00:07.9]} 22... Bf6 {[%clk 0:00:11.8]} 23. Rg2+ {[%clk 0:00:07.7]}
23... Kh8 {[%clk 0:00:10.9]} 24. Rxf6 {[%clk 0:00:07.7]} 24... Rxf6 {[%clk
0:00:10.1]} 25. Bxf6# {[%clk 0:00:08.6]} 1-0

[Event "*** Titled Tuesday Blitz"]
[Site "Chess.com"]
[Date "2020.04.14"]
[Round "4"]
[White "AliKa2810"]
[Black "SavelievAlexei"]
[Result "1-0"]
[WhiteElo "2625"]
[BlackElo "2384"]
[TimeControl "180+1"]
[EndTime "10:39:17 PDT"]
[Termination "AliKa2810 won on time"]

1. d4 {[%clk 0:03:00.9]} 1... Nf6 {[%clk 0:02:55.8]} 2. c4 {[%clk 0:03:01.1]}
2... e6 {[%clk 0:02:56.3]} 3. Nc3 {[%clk 0:03:00.4]} 3... Bb4 {[%clk 0:02:55.5]}
4. e3 {[%clk 0:03:00.9]} 4... O-O {[%clk 0:02:54.9]} 5. Ne2 {[%clk 0:03:01.1]}
5... d5 {[%clk 0:02:55.4]} 6. a3 {[%clk 0:03:00.2]} 6... Bd6 {[%clk 0:02:56.1]}
7. Ng3 {[%clk 0:02:54.3]} 7... c6 {[%clk 0:02:51]} 8. Bd3 {[%clk 0:02:51.7]}
8... Nbd7 {[%clk 0:02:48.5]} 9. O-O {[%clk 0:02:50.6]} 9... Re8 {[%clk
0:02:47.6]} 10. b4 {[%clk 0:02:42.9]} 10... e5 {[%clk 0:02:47.5]} 11. cxd5
{[%clk 0:02:40.4]} 11... cxd5 {[%clk 0:02:45]} 12. dxe5 {[%clk 0:02:35.6]} 12...
Nxe5 {[%clk 0:02:44.2]} 13. Bb2 {[%clk 0:02:31.3]} 13... Nxd3 {[%clk 0:02:34.9]}
14. Qxd3 {[%clk 0:02:30.5]} 14... Be6 {[%clk 0:02:35.5]} 15. Nce2 {[%clk
0:02:18.4]} 15... Rc8 {[%clk 0:02:31.2]} 16. Rac1 {[%clk 0:02:17.7]} 16... Ng4
{[%clk 0:02:21.6]} 17. Nf4 {[%clk 0:01:46.2]} 17... Qh4 {[%clk 0:02:15.3]} 18.
h3 {[%clk 0:01:44.8]} 18... Ne5 {[%clk 0:01:53.1]} 19. Qe2 {[%clk 0:01:20.8]}
19... Nc4 {[%clk 0:01:49]} 20. Ba1 {[%clk 0:01:11.9]} 20... Bxf4 {[%clk
0:00:34.2]} 21. exf4 {[%clk 0:01:11.2]} 21... Bxh3 {[%clk 0:00:31.2]} 22. Qf3
{[%clk 0:01:11]} 22... Be6 {[%clk 0:00:24.8]} 23. f5 {[%clk 0:01:08]} 23... Bd7
{[%clk 0:00:24.8]} 24. Qxd5 {[%clk 0:01:07.3]} 24... Nb6 {[%clk 0:00:21]} 25.
Qd3 {[%clk 0:01:03.4]} 25... Bc6 {[%clk 0:00:16.5]} 26. b5 {[%clk 0:01:00.5]}
26... Bd5 {[%clk 0:00:16.2]} 27. Rxc8 {[%clk 0:00:59.6]} 27... Rxc8 {[%clk
0:00:17.1]} 28. Re1 {[%clk 0:00:57.4]} 28... Bc4 {[%clk 0:00:14.9]} 29. Qc3
{[%clk 0:00:55.7]} 29... Qh6 {[%clk 0:00:14.5]} 30. Qe5 {[%clk 0:00:49.4]} 30...
Rf8 {[%clk 0:00:01.2]} 31. Ne4 {[%clk 0:00:39.7]} 31... f6 {[%clk 0:00:01.3]}
32. Qe7 {[%clk 0:00:39]} 32... Qf4 {[%clk 0:00:01.3]} 33. Nd6 {[%clk 0:00:34.9]}
1-0

[Event "*** Titled Tuesday Blitz"]
[Site "Chess.com"]
[Date "2020.04.14"]
[Round "4"]
[White "Noukii"]
[Black "ElliPaehtz"]
[Result "0-1"]
[WhiteElo "2699"]
[BlackElo "2550"]
[TimeControl "180+1"]
[EndTime "10:39:18 PDT"]
[Termination "ElliPaehtz won by resignation"]

1. d4 {[%clk 0:03:00.9]} 1... Nf6 {[%clk 0:02:57.5]} 2. Nf3 {[%clk 0:03:00.3]}
2... e6 {[%clk 0:02:57.1]} 3. Bg5 {[%clk 0:02:59.6]} 3... c5 {[%clk 0:02:56.2]}
4. Nc3 {[%clk 0:02:53.4]} 4... cxd4 {[%clk 0:02:55.1]} 5. Qxd4 {[%clk 0:02:53]}
5... a6 {[%clk 0:02:54.2]} 6. Bxf6 {[%clk 0:02:45.8]} 6... Qxf6 {[%clk
0:02:53.4]} 7. Qxf6 {[%clk 0:02:45]} 7... gxf6 {[%clk 0:02:53.2]} 8. O-O-O
{[%clk 0:02:43.4]} 8... b5 {[%clk 0:02:44.9]} 9. e4 {[%clk 0:02:34.2]} 9... Bb7
{[%clk 0:02:43.9]} 10. Bd3 {[%clk 0:02:33.4]} 10... Nc6 {[%clk 0:02:43.5]} 11.
Ne2 {[%clk 0:02:28.4]} 11... Bc5 {[%clk 0:02:41.9]} 12. Rhf1 {[%clk 0:02:27.6]}
12... Ke7 {[%clk 0:02:41.2]} 13. g3 {[%clk 0:02:27.6]} 13... Ne5 {[%clk
0:02:40.2]} 14. Nxe5 {[%clk 0:02:24.3]} 14... fxe5 {[%clk 0:02:39.9]} 15. f4
{[%clk 0:02:23.8]} 15... exf4 {[%clk 0:02:39.5]} 16. Nxf4 {[%clk 0:02:22.1]}
16... h5 {[%clk 0:02:31.3]} 17. h4 {[%clk 0:02:07.1]} 17... Rag8 {[%clk
0:02:28.9]} 18. Rf3 {[%clk 0:02:07.5]} 18... Rg4 {[%clk 0:02:18.7]} 19. Re1
{[%clk 0:01:52.6]} 19... Bd4 {[%clk 0:02:09.1]} 20. a4 {[%clk 0:01:34.2]} 20...
bxa4 {[%clk 0:02:05.3]} 21. Ref1 {[%clk 0:01:16.5]} 21... Be5 {[%clk 0:01:52.3]}
22. c3 {[%clk 0:00:51]} 22... f6 {[%clk 0:01:50.2]} 23. Kd2 {[%clk 0:00:47.4]}
23... a5 {[%clk 0:01:43.8]} 24. Ke3 {[%clk 0:00:32.3]} 24... Bc6 {[%clk
0:01:41.8]} 25. Be2 {[%clk 0:00:23.6]} 25... a3 {[%clk 0:01:28.1]} 26. bxa3
{[%clk 0:00:22]} 26... Bxc3 {[%clk 0:01:27.6]} 27. Kf2 {[%clk 0:00:15.1]} 27...
Bd4+ {[%clk 0:01:25.6]} 28. Ke1 {[%clk 0:00:13.2]} 28... Bxe4 {[%clk 0:01:24.5]}
29. Rb3 {[%clk 0:00:13.7]} 29... Rgg8 {[%clk 0:01:14.5]} 30. Nxh5 {[%clk
0:00:11.8]} 30... Rb8 {[%clk 0:01:08.5]} 31. Rxb8 {[%clk 0:00:11.8]} 31... Rxb8
{[%clk 0:01:07.4]} 32. Nf4 {[%clk 0:00:12.7]} 32... Be3 {[%clk 0:01:02.4]} 33.
Bd1 {[%clk 0:00:11.8]} 33... Rb2 {[%clk 0:00:57.4]} 34. Ne2 {[%clk 0:00:10.1]}
34... d5 {[%clk 0:00:48.7]} 35. h5 {[%clk 0:00:09.4]} 35... d4 {[%clk
0:00:47.8]} 36. g4 {[%clk 0:00:09.1]} 36... d3 {[%clk 0:00:45.2]} 37. Nf4 {[%clk
0:00:09.7]} 37... Bd2+ {[%clk 0:00:42.6]} 38. Kf2 {[%clk 0:00:09.9]} 38... Bxf4+
{[%clk 0:00:42.7]} 0-1

[Event "*** Titled Tuesday Blitz"]
[Site "Chess.com"]
[Date "2020.04.14"]
[Round "4"]
[White "starworld123"]
[Black "DejanNestor64"]
[Result "0-1"]
[WhiteElo "2595"]
[BlackElo "2422"]
[TimeControl "180+1"]
[EndTime "10:39:18 PDT"]
[Termination "DejanNestor64 won on time"]

1. Nf3 {[%clk 0:03:00.9]} 1... Nf6 {[%clk 0:02:57.5]} 2. c4 {[%clk 0:03:01]}
2... e6 {[%clk 0:02:57.5]} 3. g3 {[%clk 0:03:00.9]} 3... d5 {[%clk 0:02:55.6]}
4. d4 {[%clk 0:03:01.3]} 4... Bb4+ {[%clk 0:02:55.3]} 5. Bd2 {[%clk 0:03:01.1]}
5... Bd6 {[%clk 0:02:52.5]} 6. Nc3 {[%clk 0:03:00.8]} 6... c6 {[%clk 0:02:52.2]}
7. Qc2 {[%clk 0:03:00.7]} 7... O-O {[%clk 0:02:45.7]} 8. e4 {[%clk 0:03:01.2]}
8... dxe4 {[%clk 0:02:42.4]} 9. Nxe4 {[%clk 0:03:02.1]} 9... Nxe4 {[%clk
0:02:42.5]} 10. Qxe4 {[%clk 0:03:03]} 10... Nd7 {[%clk 0:02:41.3]} 11. Bd3
{[%clk 0:03:03.6]} 11... Nf6 {[%clk 0:02:30.2]} 12. Qh4 {[%clk 0:03:04]} 12...
h6 {[%clk 0:02:18.4]} 13. g4 {[%clk 0:02:55.1]} 13... Be7 {[%clk 0:02:13.7]} 14.
g5 {[%clk 0:02:54.6]} 14... Nh7 {[%clk 0:02:12.8]} 15. Qe4 {[%clk 0:02:32.6]}
15... g6 {[%clk 0:02:01.5]} 16. gxh6 {[%clk 0:02:22.1]} 16... Ng5 {[%clk
0:01:39.3]} 17. Nxg5 {[%clk 0:01:53.2]} 17... Bxg5 {[%clk 0:01:39]} 18. O-O-O
{[%clk 0:01:52.3]} 18... Kh7 {[%clk 0:01:31.4]} 19. h4 {[%clk 0:01:46.3]} 19...
Bxd2+ {[%clk 0:01:21.3]} 20. Rxd2 {[%clk 0:01:47.2]} 20... f5 {[%clk 0:01:07.5]}
21. Qf4 {[%clk 0:01:38.5]} 21... Qf6 {[%clk 0:01:04.4]} 22. Rg1 {[%clk
0:01:30.6]} 22... Rg8 {[%clk 0:00:57.6]} 23. f3 {[%clk 0:00:46.7]} 23... Bd7
{[%clk 0:00:52.6]} 24. Rdg2 {[%clk 0:00:40.2]} 24... c5 {[%clk 0:00:44]} 25. h5
{[%clk 0:00:32.5]} 25... gxh5 {[%clk 0:00:40.4]} 26. Rg7+ {[%clk 0:00:32.2]}
26... Kh8 {[%clk 0:00:41]} 27. dxc5 {[%clk 0:00:18.3]} 27... Bc6 {[%clk
0:00:32.8]} 28. Qc7 {[%clk 0:00:16.6]} 28... Qxh6+ {[%clk 0:00:30.3]} 0-1

[Event "*** Titled Tuesday Blitz"]
[Site "Chess.com"]
[Date "2020.04.14"]
[Round "4"]
[White "manitodeplomo"]
[Black "mapebo94"]
[Result "0-1"]
[WhiteElo "2487"]
[BlackElo "1987"]
[TimeControl "180+1"]
[EndTime "10:39:18 PDT"]
[Termination "mapebo94 won by resignation"]

1. d4 {[%clk 0:02:58.1]} 1... e6 {[%clk 0:03:00.9]} 2. c4 {[%clk 0:02:55.8]}
2... Nf6 {[%clk 0:03:00.8]} 3. Nf3 {[%clk 0:02:55.4]} 3... Bb4+ {[%clk
0:03:01.2]} 4. Nbd2 {[%clk 0:02:54.9]} 4... d5 {[%clk 0:02:55.6]} 5. Qc2 {[%clk
0:02:52.8]} 5... O-O {[%clk 0:02:51.3]} 6. g3 {[%clk 0:02:50.9]} 6... b6 {[%clk
0:02:50.7]} 7. Bg2 {[%clk 0:02:50.4]} 7... Bb7 {[%clk 0:02:50.9]} 8. O-O {[%clk
0:02:50.8]} 8... Nbd7 {[%clk 0:02:49.5]} 9. a3 {[%clk 0:02:51.2]} 9... Be7
{[%clk 0:02:47.8]} 10. b4 {[%clk 0:02:51]} 10... c5 {[%clk 0:02:47.6]} 11. dxc5
{[%clk 0:02:37.9]} 11... bxc5 {[%clk 0:02:48.5]} 12. b5 {[%clk 0:02:37.2]} 12...
d4 {[%clk 0:02:44]} 13. e4 {[%clk 0:02:22]} 13... dxe3 {[%clk 0:02:41]} 14. fxe3
{[%clk 0:02:22.3]} 14... e5 {[%clk 0:02:40.9]} 15. Bb2 {[%clk 0:02:12.3]} 15...
Qc7 {[%clk 0:02:40.2]} 16. Rae1 {[%clk 0:01:58.7]} 16... Rfe8 {[%clk 0:02:34.7]}
17. a4 {[%clk 0:01:45.9]} 17... Bf8 {[%clk 0:02:31.5]} 18. e4 {[%clk 0:01:38.1]}
18... a6 {[%clk 0:02:28.9]} 19. Nb1 {[%clk 0:01:37.1]} 19... axb5 {[%clk
0:02:28.5]} 20. axb5 {[%clk 0:01:37.6]} 20... Nxe4 {[%clk 0:02:11.2]} 21. Rxe4
{[%clk 0:01:35.7]} 21... Bxe4 {[%clk 0:02:10.9]} 22. Qxe4 {[%clk 0:01:36.6]}
22... Nf6 {[%clk 0:02:09.1]} 23. Bxe5 {[%clk 0:01:18.5]} 23... Qa5 {[%clk
0:01:50.9]} 24. Qf5 {[%clk 0:01:16.3]} 24... Qa2 {[%clk 0:01:37.7]} 25. Nbd2
{[%clk 0:01:13.2]} 25... Rad8 {[%clk 0:01:34.1]} 26. Bxf6 {[%clk 0:01:06.5]}
26... gxf6 {[%clk 0:01:31.4]} 27. Ne4 {[%clk 0:01:03.8]} 27... Bg7 {[%clk
0:01:25.1]} 28. Nfg5 {[%clk 0:00:47.7]} 28... fxg5 {[%clk 0:01:07.9]} 29. Nxg5
{[%clk 0:00:46.2]} 29... Re7 {[%clk 0:00:35.5]} 30. Bd5 {[%clk 0:00:38.3]} 30...
Rxd5 {[%clk 0:00:32.3]} 31. Qxd5 {[%clk 0:00:30.8]} 31... Qe2 {[%clk 0:00:28.4]}
32. Qd8+ {[%clk 0:00:12.8]} 32... Re8 {[%clk 0:00:27.5]} 33. Qd5 {[%clk
0:00:09.2]} 33... Bd4+ {[%clk 0:00:27.5]} 0-1

[Event "*** Titled Tuesday Blitz"]
[Site "Chess.com"]
[Date "2020.04.14"]
[Round "4"]
[White "AlRayyan2022"]
[Black "benko_008"]
[Result "0-1"]
[WhiteElo "2616"]
[BlackElo "2454"]
[TimeControl "180+1"]
[EndTime "10:39:19 PDT"]
[Termination "benko_008 won on time"]

1. e4 {[%clk 0:03:00.9]} 1... c5 {[%clk 0:02:59.1]} 2. Nf3 {[%clk 0:03:00.7]}
2... e6 {[%clk 0:02:58.7]} 3. d3 {[%clk 0:03:00.3]} 3... Nc6 {[%clk 0:02:55.2]}
4. g3 {[%clk 0:03:00.5]} 4... d5 {[%clk 0:02:54]} 5. Qe2 {[%clk 0:02:55.6]} 5...
Nf6 {[%clk 0:02:52.9]} 6. Bg2 {[%clk 0:02:55.3]} 6... Be7 {[%clk 0:02:52.6]} 7.
O-O {[%clk 0:02:55.1]} 7... b5 {[%clk 0:02:37.3]} 8. Bf4 {[%clk 0:02:38]} 8...
h6 {[%clk 0:02:29.4]} 9. h4 {[%clk 0:02:36.7]} 9... Bb7 {[%clk 0:02:17.3]} 10.
c3 {[%clk 0:02:20.1]} 10... a6 {[%clk 0:02:10.6]} 11. Re1 {[%clk 0:02:13.7]}
11... d4 {[%clk 0:02:01]} 12. cxd4 {[%clk 0:02:07.8]} 12... cxd4 {[%clk
0:01:59.9]} 13. Ne5 {[%clk 0:01:45.1]} 13... Nd7 {[%clk 0:01:48.4]} 14. Nxc6
{[%clk 0:01:38.3]} 14... Bxc6 {[%clk 0:01:49.3]} 15. Qg4 {[%clk 0:01:09.3]}
15... g5 {[%clk 0:01:44.6]} 16. hxg5 {[%clk 0:01:05.3]} 16... hxg5 {[%clk
0:01:45.5]} 17. Bd2 {[%clk 0:00:54.9]} 17... Ne5 {[%clk 0:01:42.6]} 18. Qe2
{[%clk 0:00:55.4]} 18... b4 {[%clk 0:01:32.9]} 19. f4 {[%clk 0:00:43.9]} 19...
gxf4 {[%clk 0:01:28.4]} 20. Bxf4 {[%clk 0:00:36]} 20... Ng6 {[%clk 0:01:25.2]}
21. e5 {[%clk 0:00:19.1]} 21... Rc8 {[%clk 0:01:21.1]} 22. Nd2 {[%clk
0:00:17.1]} 22... Nxf4 {[%clk 0:01:09.3]} 23. gxf4 {[%clk 0:00:16.3]} 23... Rg8
{[%clk 0:01:04.4]} 24. Ne4 {[%clk 0:00:15.2]} 24... Bxe4 {[%clk 0:00:58]} 25.
Qxe4 {[%clk 0:00:14.4]} 25... Rc2 {[%clk 0:00:57.2]} 26. Re2 {[%clk 0:00:14.7]}
26... Qc7 {[%clk 0:00:55.2]} 27. Rae1 {[%clk 0:00:11.3]} 27... Bh4 {[%clk
0:00:51.7]} 28. Qa8+ {[%clk 0:00:05.7]} 28... Bd8 {[%clk 0:00:49.7]} 29. Rxc2
{[%clk 0:00:01.4]} 29... Qxc2 {[%clk 0:00:48.8]} 30. Qf3 {[%clk 0:00:01.8]}
30... Qxb2 {[%clk 0:00:42.1]} 31. Kf1 {[%clk 0:00:02.2]} 31... Qc3 {[%clk
0:00:40.6]} 32. Qc6+ {[%clk 0:00:01.6]} 32... Qxc6 {[%clk 0:00:39.8]} 33. Bxc6+
{[%clk 0:00:01.2]} 33... Ke7 {[%clk 0:00:40.7]} 0-1

[Event "*** Titled Tuesday Blitz"]
[Site "Chess.com"]
[Date "2020.04.14"]
[Round "4"]
[White "allvim"]
[Black "WiktoriaPOL"]
[Result "1-0"]
[WhiteElo "2268"]
[BlackElo "2104"]
[TimeControl "180+1"]
[EndTime "10:39:19 PDT"]
[Termination "allvim won by resignation"]

1. e4 {[%clk 0:02:52.8]} 1... c5 {[%clk 0:03:00.1]} 2. Nf3 {[%clk 0:02:51.3]}
2... g6 {[%clk 0:03:00.3]} 3. d4 {[%clk 0:02:46.1]} 3... cxd4 {[%clk 0:03:01.2]}
4. Nxd4 {[%clk 0:02:46.1]} 4... Nc6 {[%clk 0:03:01.3]} 5. Nc3 {[%clk 0:02:45.1]}
5... Bg7 {[%clk 0:03:01.1]} 6. Be3 {[%clk 0:02:44.1]} 6... Nf6 {[%clk
0:03:01.2]} 7. Be2 {[%clk 0:02:43.1]} 7... O-O {[%clk 0:03:00.4]} 8. O-O {[%clk
0:02:41.4]} 8... d6 {[%clk 0:02:59.9]} 9. f3 {[%clk 0:02:34.9]} 9... a6 {[%clk
0:02:50.1]} 10. a4 {[%clk 0:02:33.5]} 10... Nxd4 {[%clk 0:02:44.1]} 11. Bxd4
{[%clk 0:02:21.5]} 11... e6 {[%clk 0:02:26.8]} 12. Qd2 {[%clk 0:02:06.3]} 12...
Qc7 {[%clk 0:02:07.1]} 13. Rad1 {[%clk 0:01:56.4]} 13... Rd8 {[%clk 0:02:01.1]}
14. Qe3 {[%clk 0:01:50.7]} 14... Qe7 {[%clk 0:01:52.8]} 15. Bb6 {[%clk
0:01:35.6]} 15... Rd7 {[%clk 0:01:41.1]} 16. Rd2 {[%clk 0:01:20.8]} 16... Qf8
{[%clk 0:01:05.5]} 17. Rfd1 {[%clk 0:01:15.4]} 17... Bh6 {[%clk 0:01:00.5]} 18.
f4 {[%clk 0:01:11.2]} 18... e5 {[%clk 0:01:00.1]} 19. g3 {[%clk 0:01:09.2]}
19... exf4 {[%clk 0:00:56.7]} 20. gxf4 {[%clk 0:01:08.9]} 20... Qe7 {[%clk
0:00:53.6]} 21. Nd5 {[%clk 0:00:40.6]} 21... Nxd5 {[%clk 0:00:50.7]} 22. Rxd5
{[%clk 0:00:41.5]} 22... Qh4 {[%clk 0:00:28.2]} 23. Rf1 {[%clk 0:00:37.9]} 23...
Re7 {[%clk 0:00:24.5]} 24. Rxd6 {[%clk 0:00:33.7]} 24... Bh3 {[%clk 0:00:23]}
25. Rf2 {[%clk 0:00:30.4]} 25... Rae8 {[%clk 0:00:21.4]} 26. Rd8 {[%clk
0:00:22.2]} 26... Rxd8 {[%clk 0:00:18.4]} 27. Bxd8 {[%clk 0:00:20.9]} 27... Kf8
{[%clk 0:00:12.3]} 28. Bxe7+ {[%clk 0:00:20]} 28... Kxe7 {[%clk 0:00:11.8]} 29.
Qg3 {[%clk 0:00:19]} 1-0

[Event "*** Titled Tuesday Blitz"]
[Site "Chess.com"]
[Date "2020.04.14"]
[Round "4"]
[White "vovachesss"]
[Black "grunbergmihai"]
[Result "1-0"]
[WhiteElo "2599"]
[BlackElo "2350"]
[TimeControl "180+1"]
[EndTime "10:39:21 PDT"]
[Termination "vovachesss won by checkmate"]

1. e4 {[%clk 0:03:00.9]} 1... Nf6 {[%clk 0:02:54.7]} 2. e5 {[%clk 0:03:00.4]}
2... Nd5 {[%clk 0:02:54.7]} 3. c4 {[%clk 0:02:59.5]} 3... Nb6 {[%clk 0:02:54.6]}
4. a4 {[%clk 0:02:59.2]} 4... a5 {[%clk 0:02:52.6]} 5. c5 {[%clk 0:02:59.2]}
5... Nd5 {[%clk 0:02:52.3]} 6. Nf3 {[%clk 0:02:54.7]} 6... d6 {[%clk 0:02:45.2]}
7. Bc4 {[%clk 0:02:54.3]} 7... e6 {[%clk 0:02:43.3]} 8. cxd6 {[%clk 0:02:50]}
8... cxd6 {[%clk 0:02:42.5]} 9. d4 {[%clk 0:02:50.6]} 9... Nc6 {[%clk
0:02:40.1]} 10. O-O {[%clk 0:02:49.3]} 10... dxe5 {[%clk 0:02:36.8]} 11. dxe5
{[%clk 0:02:46.9]} 11... Be7 {[%clk 0:02:35]} 12. Qe2 {[%clk 0:02:46.9]} 12...
Qc7 {[%clk 0:02:25.4]} 13. Rd1 {[%clk 0:02:44.7]} 13... O-O {[%clk 0:02:20.8]}
14. Na3 {[%clk 0:02:38]} 14... Ncb4 {[%clk 0:02:08]} 15. Nb5 {[%clk 0:02:36.5]}
15... Qb6 {[%clk 0:02:02.4]} 16. Qe4 {[%clk 0:02:19.6]} 16... Bd7 {[%clk
0:01:56.1]} 17. Ng5 {[%clk 0:02:16.9]} 17... Bxg5 {[%clk 0:01:25.1]} 18. Bxg5
{[%clk 0:02:17.8]} 18... Bxb5 {[%clk 0:01:21.7]} 19. Bxb5 {[%clk 0:02:13.4]}
19... h6 {[%clk 0:01:17.2]} 20. Bxh6 {[%clk 0:01:55.4]} 20... gxh6 {[%clk
0:01:15]} 21. Ra3 {[%clk 0:01:55.6]} 21... Ne7 {[%clk 0:01:02.9]} 22. Rg3+
{[%clk 0:01:52.2]} 22... Ng6 {[%clk 0:00:54.5]} 23. Rxg6+ {[%clk 0:01:52]} 23...
fxg6 {[%clk 0:00:53.8]} 24. Qxg6+ {[%clk 0:01:51.8]} 24... Kh8 {[%clk
0:00:54.7]} 25. Qxh6+ {[%clk 0:01:47.6]} 25... Kg8 {[%clk 0:00:54.6]} 26. Qg5+
{[%clk 0:01:21.6]} 26... Kh8 {[%clk 0:00:54]} 27. Qh4+ {[%clk 0:01:21.6]} 27...
Kg8 {[%clk 0:00:53.8]} 28. Qg3+ {[%clk 0:01:19.5]} 28... Kh8 {[%clk 0:00:49.7]}
29. Rd7 {[%clk 0:01:19.9]} 29... Qxf2+ {[%clk 0:00:44.9]} 30. Qxf2 {[%clk
0:01:20.1]} 30... Rxf2 {[%clk 0:00:45.2]} 31. Kxf2 {[%clk 0:01:21]} 31... Rc8
{[%clk 0:00:43.6]} 32. Rxb7 {[%clk 0:01:15.3]} 32... Rc2+ {[%clk 0:00:43.1]} 33.
Kf3 {[%clk 0:01:16]} 33... Rxb2 {[%clk 0:00:43.5]} 34. h4 {[%clk 0:01:16.4]}
34... Rb3+ {[%clk 0:00:39.8]} 35. Kg4 {[%clk 0:01:14.2]} 35... Nd3 {[%clk
0:00:38.7]} 36. Kg5 {[%clk 0:01:00.2]} 36... Nxe5 {[%clk 0:00:37.8]} 37. Kf6
{[%clk 0:00:56.7]} 37... Ng4+ {[%clk 0:00:33.9]} 38. Kxe6 {[%clk 0:00:55.8]}
38... Rg3 {[%clk 0:00:26.5]} 39. Kf7 {[%clk 0:00:39.4]} 39... Rxg2 {[%clk
0:00:20]} 40. Rb8+ {[%clk 0:00:39]} 40... Kh7 {[%clk 0:00:18.8]} 41. Bd3+ {[%clk
0:00:39.9]} 41... Kh6 {[%clk 0:00:16.8]} 42. Rh8# {[%clk 0:00:40.8]} 1-0

[Event "*** Titled Tuesday Blitz"]
[Site "Chess.com"]
[Date "2020.04.14"]
[Round "4"]
[White "pheonixking2000"]
[Black "ValeriyGrinev"]
[Result "1-0"]
[WhiteElo "2829"]
[BlackElo "2603"]
[TimeControl "180+1"]
[EndTime "10:39:22 PDT"]
[Termination "pheonixking2000 won by resignation"]

1. d4 {[%clk 0:03:00.9]} 1... Nf6 {[%clk 0:02:59.3]} 2. Nf3 {[%clk 0:02:59.6]}
2... g6 {[%clk 0:02:59.5]} 3. Nbd2 {[%clk 0:02:58.5]} 3... c5 {[%clk 0:02:57.9]}
4. dxc5 {[%clk 0:02:57.8]} 4... Qa5 {[%clk 0:02:57.4]} 5. a3 {[%clk 0:02:56.9]}
5... Qxc5 {[%clk 0:02:57.3]} 6. b4 {[%clk 0:02:57.3]} 6... Qc7 {[%clk
0:02:57.7]} 7. Bb2 {[%clk 0:02:57.4]} 7... Bg7 {[%clk 0:02:58.3]} 8. c4 {[%clk
0:02:57.1]} 8... d6 {[%clk 0:02:56.9]} 9. g3 {[%clk 0:02:56.3]} 9... b6 {[%clk
0:02:55.5]} 10. Bg2 {[%clk 0:02:56.2]} 10... Bb7 {[%clk 0:02:56.2]} 11. O-O
{[%clk 0:02:56.2]} 11... O-O {[%clk 0:02:56.2]} 12. Qb3 {[%clk 0:02:56.7]} 12...
Nbd7 {[%clk 0:02:55.5]} 13. Rac1 {[%clk 0:02:55.6]} 13... Rac8 {[%clk
0:02:55.6]} 14. Ne1 {[%clk 0:02:51.9]} 14... Bxg2 {[%clk 0:02:53.5]} 15. Nxg2
{[%clk 0:02:52.5]} 15... Qb7 {[%clk 0:02:54]} 16. Rfe1 {[%clk 0:02:50.1]} 16...
Rc7 {[%clk 0:02:53.4]} 17. e4 {[%clk 0:02:47.1]} 17... Rfc8 {[%clk 0:02:52.8]}
18. Ne3 {[%clk 0:02:46]} 18... e6 {[%clk 0:02:32.3]} 19. Qd3 {[%clk 0:02:44.4]}
19... Ne5 {[%clk 0:02:24.5]} 20. Bxe5 {[%clk 0:02:19.9]} 20... dxe5 {[%clk
0:02:25.4]} 21. Rc2 {[%clk 0:02:13]} 21... Rd7 {[%clk 0:02:14.9]} 22. Qc3 {[%clk
0:02:09.7]} 22... Rd4 {[%clk 0:02:15.4]} 23. f3 {[%clk 0:02:07.9]} 23... Rcd8
{[%clk 0:02:13.5]} 24. Ndf1 {[%clk 0:01:57.3]} 24... g5 {[%clk 0:01:56.3]} 25.
g4 {[%clk 0:01:54.6]} 25... h5 {[%clk 0:01:52.4]} 26. h3 {[%clk 0:01:53.6]}
26... hxg4 {[%clk 0:01:38.2]} 27. hxg4 {[%clk 0:01:52.6]} 27... Nh7 {[%clk
0:01:38.7]} 28. Ng3 {[%clk 0:01:42.5]} 28... Nf8 {[%clk 0:01:38]} 29. Rh2 {[%clk
0:01:42.5]} 29... Ng6 {[%clk 0:01:35.6]} 30. Nh5 {[%clk 0:01:42.9]} 30... Nf4
{[%clk 0:01:34.3]} 31. Qc2 {[%clk 0:01:37.7]} 31... f6 {[%clk 0:01:16.3]} 32.
Nxf4 {[%clk 0:01:09.3]} 32... exf4 {[%clk 0:01:15.8]} 33. e5 {[%clk 0:01:06.9]}
33... Qxf3 {[%clk 0:00:46.3]} 34. Qh7+ {[%clk 0:00:56.9]} 34... Kf8 {[%clk
0:00:45.6]} 35. exf6 {[%clk 0:00:54.8]} 35... Qg3+ {[%clk 0:00:45.2]} 36. Ng2
{[%clk 0:00:54.2]} 36... Bxf6 {[%clk 0:00:43.9]} 37. Qg6 {[%clk 0:00:48.1]}
37... Bg7 {[%clk 0:00:32.9]} 38. Rh7 {[%clk 0:00:38.3]} 38... R8d7 {[%clk
0:00:22.2]} 39. Qxe6 {[%clk 0:00:35.3]} 39... Rd8 {[%clk 0:00:16.1]} 40. Qe7+
{[%clk 0:00:34.4]} 1-0